fUST/lending_fUST_20251004
["ID","MTS","AMOUNT","RATE_DAILY","PERIOD"]
[388926608,1759511136312,1189.32367197,0.00018033,2]
[388926609,1759511144165,5000.0,0.00018033,2]
[388926610,1759511152660,4047.68184998,0.00018033,2]
[388926611,1759511167807,5000.0,0.00018033,2]
[388926612,1759511190758,5000.0,0.00018033,2]
[388926613,1759511213668,5000.0,0.00018033,2]
[388926615,1759511236137,5000.0,0.00018033,2]
[388926616,1759511258915,5000.0,0.00018033,2]
[388926617,1759511281291,5000.0,0.00018033,2]
[388926618,1759511304159,5000.0,0.00018033,2]
[388926619,1759511317749,-393.85931288,0.00018146,2]
[388926620,1759511317775,-675.0,0.00018246,2]
[388926621,1759511317799,-3113.22850027,0.00018246,2]
[388926622,1759511326404,5000.0,0.00018033,2]
[388926623,1759511349211,5000.0,0.00018033,2]
[388926629,1759511371570,5000.0,0.00018033,2]
[388926630,1759511393950,5000.0,0.00018033,2]
[388926631,1759511416231,5000.0,0.00018033,2]
[388926672,1759511432415,-220.15,0.000181,2]
[388926674,1759511432425,-1068.85931288,0.00018246,2]
[388926676,1759511432434,-706.20926556,0.000192,2]
[388926678,1759511432446,-678.31614289,0.000192,2]
[388926680,1759511432455,-643.45634223,0.0001995,2]
[388926682,1759511432464,-238.94,0.0002,2]
[388926684,1759511432474,-162.0,0.0002,2]
[388926686,1759511432483,-361.24,0.00020186,2]
[388926688,1759511432493,-1200.0,0.00020803,2]
[388926691,1759511432502,-300.0,0.00020803,2]
[388926694,1759511432511,-914.24751488,0.00020803,2]
[388926697,1759511432523,-285.75248512,0.00020803,2]
[388926700,1759511432532,-1745.13949228,0.00020805,2]
[388926703,1759511432541,-286.1080228,0.00020805,2]
[388926706,1759511432552,-13.8919772,0.00020805,2]
[388926709,1759511432562,-300.0,0.00020805,2]
[388926712,1759511432571,-42.62529344,0.00020805,2]
[388927055,1759511438219,-257.37470656,0.00020805,2]
[388927057,1759511438228,-105.86703091,0.00020805,2]
[388927062,1759511438270,-194.13296909,0.00020805,2]
[388927065,1759511438280,-300.0,0.00020805,2]
[388927066,1759511438290,-300.0,0.00020805,2]
[388927068,1759511438299,-300.0,0.00020805,2]
[388927070,1759511438309,-129.86703091,0.00020805,2]
[388927073,1759511438320,-170.13296909,0.00020805,2]
[388927075,1759511438330,-300.0,0.00020805,2]
[388927077,1759511438339,-300.0,0.00020805,2]
[388927079,1759511438348,-300.0,0.00020805,2]
[388927081,1759511438358,-300.0,0.00020805,2]
[388927083,1759511438369,-300.0,0.00020805,2]
[388927084,1759511438379,-300.0,0.00020805,2]
[388927087,1759511438388,-300.0,0.00020805,2]
[388927089,1759511438398,-160.0,0.00021526,2]
[388927090,1759511438407,-293.47406221,0.00021526,2]
[388927092,1759511438417,-234.04758945,0.00021526,2]
[388927094,1759511438427,-150.0,0.00021918,2]
[388927096,1759511438436,-253.0,0.00022741,2]
[388927099,1759511438446,-694.909931,0.00022783,2]
[388927100,1759511438455,-412.194341,0.00022951,2]
[388927102,1759511438465,-160.0,0.00023,2]
[388927104,1759511438475,-300.0,0.000234,2]
[388927107,1759511438485,-410.0,0.00023725,2]
[388927108,1759511438493,-1670.863943,0.00024,2]
[388927111,1759511438503,-190.404569,0.00024667,2]
[388927112,1759511438512,-150.0,0.00025,10]
[388927115,1759511438521,-1000.0,0.00025636,2]
[388927116,1759511438531,-164.8337135,0.00025918,30]
[388927119,1759511438540,-154.0,0.00026,2]
[388927121,1759511438550,-300.0,0.00026,2]
[388927122,1759511438559,-300.0,0.00026,2]
[388927125,1759511438569,-5000.0,0.0002645,2]
[388927127,1759511438578,-1041.66666667,0.00026645,2]
[388927129,1759511438588,-410.0,0.00026725,2]
[388927131,1759511438598,-226.031,0.00027027,15]
[388927133,1759511438608,-500.0,0.00027399,2]
[388927134,1759511438618,-300.0,0.000274,2]
[388927136,1759511438627,-600.0,0.00027539,30]
[388927137,1759511438636,-395.04472298,0.00027673,2]
[388927139,1759511438646,-173.89918666,0.00027999,7]
[388927140,1759511438655,-500.0,0.00027999,2]
[388927141,1759511438665,-500.0,0.00027999,2]
[388927143,1759511438674,-214.24587953,0.00027999,2]
[388927145,1759511438684,-186.56137631,0.00027999,2]
[388927147,1759511438695,-223.3124836,0.00027999,2]
[388927148,1759511438705,-500.0,0.00027999,2]
[388927149,1759511438715,-489.72293927,0.00027999,2]
[388927151,1759511438725,-500.0,0.00027999,2]
[388927153,1759511438738,-570.62769295,0.00027999,2]
[388927154,1759511438750,-2000.0,0.00028,2]
[388927155,1759511438759,-475.94003139,0.00028,30]
[388927156,1759511438770,-500.0,0.00028897,2]
[388927157,1759511438781,-151.0,0.00028897,2]
[388927158,1759511438791,-350.0,0.00028897,2]
[388927159,1759511438799,-166.0,0.00028897,2]
[388927160,1759511438810,-3109.39685279,0.00028897,2]
[388927161,1759511438833,-2858.41835692,0.00028897,2]
[388927194,1759511440415,-569.97499991,0.00020597,2]
[388927203,1759511440723,-472.27026472,0.00020597,2]
[388927447,1759511445646,-420.81160766,0.00020597,2]
[388927452,1759511445684,-3536.94312771,0.00020597,2]
[388927454,1759511445694,-11777.97719818,0.00028897,2]
[388927456,1759511445703,-151.44966843,0.00028897,2]
[388927458,1759511445712,-250.0,0.00028897,2]
[388927460,1759511445722,-250.0,0.00028897,2]
[388927462,1759511445732,-250.0,0.00028897,2]
[388927463,1759511445743,-250.0,0.00028897,2]
[388927465,1759511445752,-250.0,0.00028897,2]
[388927467,1759511445761,-250.0,0.00028897,2]
[388927469,1759511445771,-250.0,0.00028897,2]
[388927471,1759511445780,-392.28144849,0.00028897,2]
[388927473,1759511445789,-480.0,0.00029041,10]
[388927475,1759511445799,-694.909931,0.00029128,2]
[388927477,1759511445811,-295.6879856,0.00029159,30]
[388927479,1759511445822,-155.4248,0.00029429,3]
[388927481,1759511445831,-500.0,0.0002943,11]
[388927483,1759511445841,-500.0,0.0002943,11]
[388927485,1759511445850,-2964.29394062,0.00029724,24]
[388927487,1759511445860,-410.0,0.00029725,2]
[388927489,1759511445873,-155.4248,0.000298,26]
[388927491,1759511445883,-5345.49035707,0.00029887,2]
[388927493,1759511445893,-2506.34338987,0.00029894,2]
[388927495,1759511445903,-164.85,0.00029907,4]
[388927498,1759511445912,-164.85,0.00029907,4]
[388927500,1759511445921,-164.85,0.00029907,4]
[388927502,1759511445931,-164.85,0.00029907,4]
[388927504,1759511445940,-153.86,0.00029907,4]
[388927506,1759511445949,-153.86,0.00029907,4]
[388927508,1759511445958,-153.86,0.00029907,4]
[388927511,1759511445968,-153.86,0.00029907,4]
[388927512,1759511445977,-153.86,0.00029907,4]
[388927514,1759511445986,-153.86,0.00029907,4]
[388927516,1759511445995,-153.86,0.00029907,4]
[388927520,1759511446004,-1145.28940066,0.00029918,4]
[388927524,1759511446013,-2100.0,0.0002992,7]
[388927526,1759511446023,-349.56953824,0.00029973,5]
[388927528,1759511446032,-709.48,0.00029977,10]
[388927530,1759511446041,-3904.81,0.00029977,10]
[388927532,1759511446051,-384.45375625,0.00029979,2]
[388927534,1759511446060,-4000.0,0.0002998,2]
[388927536,1759511446069,-2000.0,0.00029986,3]
[388927538,1759511446078,-471.5,0.00029987,3]
[388927540,1759511446087,-235.75,0.00029987,3]
[388927542,1759511446096,-707.25,0.00029987,3]
[388927544,1759511446105,-653733.811315,0.00029987,2]
[388927546,1759511446114,-6000.0,0.00029994,4]
[388927548,1759511446126,-2619.81,0.00029996,2]
[388927550,1759511446135,-752.26,0.00029997,3]
[388927552,1759511446144,-300.60047145,0.0003,14]
[388927554,1759511446153,-290493.11197198,0.00030007,2]
[388927556,1759511446163,-584.98919306,0.00030073,5]
[388927558,1759511446173,-500.0,0.00030073,5]
[388927560,1759511446183,-500.0,0.00030073,5]
[388927562,1759511446192,-153.86,0.00030086,4]
[388927564,1759511446201,-500.0,0.00030106,10]
[388927567,1759511446211,-1135.8944988,0.00030107,13]
[388927569,1759511446220,-502.05371853,0.00030115,2]
[388927571,1759511446230,-520.0,0.00030136,3]
[388927573,1759511446239,-520.0,0.00030136,3]
[388927575,1759511446248,-500.0,0.00030136,2]
[388927577,1759511446258,-195.93511927,0.00030136,2]
[388927579,1759511446267,-3279.85,0.00030136,120]
[388927581,1759511446276,-3279.85,0.00030136,120]
[388927583,1759511446285,-3279.85,0.00030136,120]
[388927585,1759511446294,-3279.85,0.00030136,120]
[388927587,1759511446303,-3279.85,0.00030136,120]
[388927588,1759511446312,-3279.85,0.00030136,120]
[388927591,1759511446322,-3279.85,0.00030136,120]
[388927593,1759511446331,-3279.85,0.00030136,120]
[388927595,1759511446341,-3279.85,0.00030136,120]
[388927597,1759511446351,-3279.85,0.00030136,120]
[388927598,1759511446360,-3279.85,0.00030136,120]
[388927601,1759511446372,-3279.85,0.00030136,120]
[388927602,1759511446381,-3279.85,0.00030136,120]
[388927604,1759511446391,-293.47406221,0.00030136,120]
[388927607,1759511446401,-696.080903,0.00030137,120]
[388927609,1759511446410,-342.11008053,0.00030137,2]
[388927611,1759511446420,-3002.7,0.0003015,2]
[388927613,1759511446429,-155.4248,0.0003017,7]
[388927614,1759511446438,-54931.48175012,0.00030186,13]
[388927617,1759511446448,-306.0,0.00030228,30]
[388927618,1759511446457,-156.13,0.00030275,15]
[388927620,1759511446466,-720.0,0.00030293,30]
[388927622,1759511446476,-156.14683813,0.00030375,15]
[388927625,1759511446486,-179.51,0.0003038,10]
[388927627,1759511446499,-155.4248,0.000304,26]
[388927629,1759511446508,-1000.0,0.0003044,5]
[388927631,1759511446518,-1000.0,0.0003044,30]
[388927633,1759511446526,-1000.0,0.0003044,5]
[388927635,1759511446536,-1000.0,0.0003044,5]
[388927637,1759511446545,-435.57825255,0.0003044,30]
[388927639,1759511446554,-1000.0,0.0003044,5]
[388927641,1759511446564,-500.0,0.0003044,30]
[388927643,1759511446573,-151.0,0.0003044,7]
[388927645,1759511446583,-151.0,0.0003044,7]
[388927647,1759511446593,-151.0,0.0003044,7]
[388927649,1759511446602,-151.0,0.0003044,7]
[388927651,1759511446611,-151.0,0.0003044,7]
[388927653,1759511446621,-151.0,0.0003044,7]
[388927655,1759511446630,-322.29143382,0.00030496,2]
[388927657,1759511446640,-1000.0,0.00030621,5]
[388927660,1759511446650,-1000.0,0.00030621,5]
[388927662,1759511446659,-199.0,0.00030684,14]
[388927664,1759511446668,-153.86,0.00030713,4]
[388927666,1759511446677,-2506.34338985,0.00030897,2]
[388927668,1759511446686,-1135.0,0.00030978,31]
[388927670,1759511446695,-155.4248,0.00031,30]
[388927672,1759511446704,-234.04758945,0.00031,120]
[388927674,1759511446713,-5000.0,0.00031055,30]
[388927676,1759511446723,-356.51727064,0.00031145,2]
[388927678,1759511446736,-1500.0,0.00031168,5]
[388927680,1759511446745,-1519.72529382,0.00031168,5]
[388927682,1759511446754,-800.0,0.00031205,2]
[388927684,1759511446763,-279.71,0.00031232,15]
[388927686,1759511446773,-202.88819794,0.00031234,2]
[388927688,1759511446783,-151.75533598,0.00031234,2]
[388927690,1759511446792,-151.94917243,0.00031234,2]
[388927692,1759511446803,-206.72889547,0.00031234,2]
[388927694,1759511446812,-180.15933041,0.00031234,2]
[388927696,1759511446822,-151.0,0.00031234,2]
[388927698,1759511446831,-198.7513023,0.00031234,2]
[388927700,1759511446841,-251.31195958,0.00031234,2]
[388927703,1759511446850,-151.0,0.00031234,2]
[388927705,1759511446859,-198.72650697,0.00031234,2]
[388927707,1759511446868,-152.03295807,0.00031234,2]
[388927709,1759511446880,-151.0,0.00031234,2]
[388927711,1759511446889,-151.0,0.00031234,2]
[388927713,1759511446898,-151.0,0.00031234,2]
[388927715,1759511446907,-151.0,0.00031234,2]
[388927717,1759511446916,-151.0,0.00031234,2]
[388927719,1759511446926,-151.0,0.00031234,2]
[388927721,1759511446936,-500.0,0.00031234,2]
[388927723,1759511446945,-151.0,0.00031234,2]
[388927725,1759511446954,-151.0,0.00031234,2]
[388927727,1759511446963,-151.0,0.00031234,2]
[388927729,1759511446973,-500.0,0.00031234,2]
[388927731,1759511446982,-800.0,0.00031265,2]
[388927733,1759511446992,-800.0,0.0003128,2]
[388927735,1759511447001,-155.4248,0.00031284,2]
[388927737,1759511447012,-3205.9495792,0.00031312,2]
[388927739,1759511447023,-4191.154317,0.00031312,2]
[388927741,1759511447031,-9037.1090349,0.00031312,2]
[388927743,1759511447049,-3279.85,0.0003132,120]
[388927745,1759511447059,-3279.85,0.0003132,120]
[388927747,1759511447068,-3279.85,0.0003132,120]
[388927750,1759511447077,-3279.85,0.0003132,120]
[388927752,1759511447087,-3279.85,0.0003132,120]
[388927753,1759511447096,-3279.85,0.0003132,120]
[388927756,1759511447106,-3279.85,0.0003132,120]
[388927758,1759511447115,-3279.85,0.0003132,120]
[388927759,1759511447126,-3279.85,0.0003132,120]
[388927761,1759511447135,-3279.85,0.0003132,120]
[388927764,1759511447145,-3280.07290496,0.0003132,120]
[388927766,1759511447154,-293.47406221,0.0003132,120]
[388927767,1759511447164,-2513.61862659,0.00031329,10]
[388927770,1759511447174,-3952.37143737,0.0003134,2]
[388927771,1759511447183,-153.86,0.0003134,4]
[388927773,1759511447192,-800.0,0.00031354,2]
[388927775,1759511447202,-943.0,0.00031357,3]
[388927777,1759511447211,-471.5,0.00031357,3]
[388927779,1759511447221,-800.0,0.00031393,2]
[388927781,1759511447230,-800.0,0.00031415,2]
[388927783,1759511447239,-306.05441069,0.00031439,10]
[388927785,1759511447249,-536454.97036658,0.0003144,2]
[388927787,1759511447258,-151.0,0.0003144,7]
[388927789,1759511447267,-151.0,0.0003144,7]
[388927791,1759511447276,-151.0,0.0003144,7]
[388927793,1759511447285,-390.89013911,0.0003144,5]
[388927795,1759511447294,-151.0,0.0003144,7]
[388927797,1759511447303,-151.0,0.0003144,7]
[388927799,1759511447313,-151.0,0.0003144,7]
[388927801,1759511447322,-151.0,0.0003144,7]
[388927803,1759511447331,-286.960511,0.0003144,7]
[388927805,1759511447341,-286.960511,0.0003144,7]
[388927807,1759511447350,-286.960511,0.0003144,7]
[388927809,1759511447359,-286.960511,0.0003144,7]
[388927811,1759511447368,-154.79,0.00031467,15]
[388927813,1759511447379,-500.0,0.00031473,5]
[388927815,1759511447388,-775.49,0.00031492,15]
[388927817,1759511447397,-2366.94,0.000315,2]
[388927818,1759511447407,-5940.85,0.000315,2]
[388927820,1759511447416,-151.0,0.00031508,2]
[388927822,1759511447425,-152.31099038,0.00031508,2]
[388927824,1759511447434,-151.0,0.00031508,2]
[388927826,1759511447443,-151.0,0.00031508,2]
[388927828,1759511447452,-500.0,0.00031508,2]
[388927830,1759511447462,-151.0,0.00031508,2]
[388927832,1759511447471,-151.0,0.00031508,2]
[388927834,1759511447480,-500.0,0.00031508,2]
[388927836,1759511447490,-3952.37143731,0.00031509,2]
[388927838,1759511447498,-190.404569,0.00031516,60]
[388927840,1759511447508,-154.79,0.00031567,15]
[388927842,1759511447517,-246.318,0.0003158,2]
[388927844,1759511447527,-775.49,0.00031592,15]
[388927846,1759511447537,-151.0,0.00031644,30]
[388927848,1759511447546,-154.79,0.00031667,15]
[388927850,1759511447555,-3952.37143731,0.00031679,2]
[388927852,1759511447564,-200.0,0.0003169,120]
[388927854,1759511447573,-775.49,0.00031692,15]
[388927856,1759511447583,-2000.0,0.00031716,5]
[388927858,1759511447592,-154.79,0.00031767,15]
[388927860,1759511447601,-151.0,0.00031782,2]
[388927862,1759511447610,-151.96779539,0.00031782,2]
[388927863,1759511447619,-151.0,0.00031782,2]
[388927866,1759511447630,-500.0,0.00031782,2]
[388927868,1759511447639,-151.0,0.00031782,2]
[388927870,1759511447649,-198.0,0.00031782,2]
[388927872,1759511447658,-500.0,0.00031782,2]
[388927873,1759511447668,-200.0,0.00031782,120]
[388927875,1759511447677,-775.49,0.00031792,15]
[388927877,1759511447686,-200.0,0.00031815,120]
[388927879,1759511447695,-3952.37143731,0.00031848,2]
[388927881,1759511447704,-154.79,0.00031867,15]
[388927883,1759511447714,-200.0,0.00031888,120]
[388927885,1759511447723,-775.49,0.00031892,15]
[388927887,1759511447735,-22546.26399645,0.000319,2]
[388927889,1759511447744,-5940.85,0.000319,2]
[388927891,1759511447752,-2506.34338985,0.000319,2]
[388927893,1759511447762,-5000.0,0.00031908,36]
[388927895,1759511447772,-8053.62844677,0.00031942,35]
[388927897,1759511447783,-5000.0,0.00031942,37]
[388927899,1759511447792,-5000.0,0.00031942,37]
[388927901,1759511447801,-5000.0,0.00031942,33]
[388927903,1759511447814,-5000.0,0.00031942,35]
[388927905,1759511447823,-1444.0,0.00031945,120]
[388927907,1759511447832,-154.79,0.00031967,15]
[388927909,1759511447842,-500.0,0.00031973,5]
[388927911,1759511447851,-775.49,0.00031992,15]
[388927913,1759511447860,-151.80050122,0.00032,120]
[388927915,1759511447872,-1004.0,0.00032,120]
[388927917,1759511447881,-300.0,0.00032,120]
[388927919,1759511447891,-150.91371486,0.00032,5]
[388927921,1759511447900,-192891.10992568,0.00032,60]
[388927923,1759511447909,-168.2,0.00032,120]
[388927925,1759511447919,-12773.23896975,0.00032,15]
[388927927,1759511447928,-5800.0113,0.00032,5]
[388927929,1759511447938,-200.0,0.00032,2]
[388927931,1759511447947,-7781.23287158,0.00032,120]
[388927933,1759511447956,-160.41279173,0.00032,120]
[388927935,1759511447965,-160.76864859,0.00032,120]
[388927936,1759511447974,-247.296,0.00032,120]
[388927938,1759511447983,-841.17835567,0.00032,120]
[388927940,1759511447992,-1338.80183365,0.00032,120]
[388927942,1759511448002,-340.61821663,0.00032,120]
[388927944,1759511448011,-2206.8303609,0.00032,120]
[388927946,1759511448020,-258.04086027,0.00032,120]
[388927948,1759511448029,-151.0,0.00032,7]
[388927950,1759511448038,-151.0,0.00032,7]
[388927952,1759511448047,-151.0,0.00032,7]
[388927954,1759511448056,-151.0,0.00032,7]
[388927956,1759511448065,-151.0,0.00032,7]
[388927958,1759511448073,-151.0,0.00032,7]
[388927960,1759511448082,-286.960511,0.00032,7]
[388927962,1759511448092,-286.960511,0.00032,7]
[388927964,1759511448100,-286.960511,0.00032,7]
[388927966,1759511448111,-286.960511,0.00032,7]
[388927968,1759511448124,-3952.37143731,0.00032017,2]
[388927970,1759511448133,-159.72235773,0.00032021,5]
[388927972,1759511448142,-198.0,0.00032056,2]
[388927974,1759511448151,-151.0,0.00032056,2]
[388927975,1759511448162,-500.0,0.00032056,2]
[388927977,1759511448170,-151.0,0.00032056,2]
[388927979,1759511448179,-500.0,0.00032056,2]
[388927981,1759511448188,-154.79,0.00032067,15]
[388927983,1759511448197,-202.77365594,0.00032069,30]
[388927985,1759511448206,-775.49,0.00032092,15]
[388927987,1759511448215,-154.2294302,0.00032108,30]
[388927989,1759511448224,-54931.48175012,0.00032155,17]
[388927991,1759511448234,-1033.54,0.00032164,30]
[388927993,1759511448243,-154.79,0.00032167,15]
[388927995,1759511448251,-3952.37143731,0.00032187,2]
[388927997,1759511448260,-2619.81,0.00032188,4]
[388927999,1759511448269,-775.49,0.00032192,15]
[388928001,1759511448278,-1932.30372807,0.0003224,2]
[388928003,1759511448287,-2500.0,0.00032264,5]
[388928004,1759511448296,-154.79,0.00032267,15]
[388928007,1759511448306,-200.0,0.00032278,120]
[388928008,1759511448315,-775.49,0.00032292,15]
[388928010,1759511448324,-151.0,0.0003233,2]
[388928012,1759511448333,-500.0,0.0003233,2]
[388928014,1759511448342,-262.50605479,0.0003233,2]
[388928016,1759511448351,-500.0,0.0003233,2]
[388928018,1759511448360,-3952.37143731,0.00032356,2]
[388928020,1759511448368,-154.79,0.00032367,15]
[388928022,1759511448382,-155.4248,0.00032383,60]
[388928024,1759511448391,-775.49,0.00032392,15]
[388928026,1759511448400,-154.96483919,0.00032467,15]
[388928028,1759511448410,-1165.0,0.00032474,34]
[388928030,1759511448419,-775.49,0.00032492,15]
[388928032,1759511448428,-407117.04,0.00032492,10]
[388928034,1759511448437,-95732.14,0.00032492,10]
[388928036,1759511448446,-155.4248,0.00032511,60]
[388928038,1759511448455,-1000.0,0.00032521,5]
[388928040,1759511448467,-3952.37143731,0.00032525,2]
[388928041,1759511448476,-775.49,0.00032592,15]
[388928042,1759511448485,-245.0,0.00032604,2]
[388928043,1759511448495,-500.0,0.00032604,2]
[388928044,1759511448504,-500.0,0.00032604,2]
[388928045,1759511448514,-200.0,0.00032653,120]
[388928046,1759511448523,-2100.0,0.0003266,7]
[388928047,1759511448533,-775.49,0.00032692,15]
[388928048,1759511448543,-3952.37143731,0.00032695,2]
[388928049,1759511448553,-410.0,0.00032725,2]
[388928050,1759511448562,-775.49,0.00032792,15]
[388928051,1759511448572,-151.0,0.000328,120]
[388928052,1759511448581,-2366.94,0.000328,2]
[388928053,1759511448591,-5940.85,0.000328,2]
[388928054,1759511448603,-2906.69679862,0.00032812,5]
[388928055,1759511448612,-200.0,0.00032831,120]
[388928056,1759511448622,-155.4248,0.00032844,2]
[388928070,1759511448784,-1590.15755298,0.00032855,2]
[388928072,1759511448794,-3952.37143731,0.00032864,2]
[388928074,1759511448804,-500.0,0.00032877,2]
[388928076,1759511448814,-500.0,0.00032878,2]
[388928078,1759511448823,-500.0,0.00032878,2]
[388928080,1759511448832,-775.49,0.00032892,60]
[388928082,1759511448841,-5000.0,0.0003295,4]
[388928084,1759511448850,-151.0,0.00032961,7]
[388928086,1759511448859,-151.0,0.00032961,7]
[388928088,1759511448868,-203.111131,0.00032961,7]
[388928090,1759511448879,-151.0,0.00032961,7]
[388928092,1759511448890,-151.0,0.00032961,7]
[388928094,1759511448899,-1215346.78433499,0.00032964,20]
[388928124,1759511449194,-6100.0,0.00032964,20]
[388928130,1759511449246,-123362.4647132,0.00032964,20]
[388928132,1759511449258,-25573.48810733,0.00032964,20]
[388929641,1759511542274,160.0,0.00013699,2]
[388929642,1759511542645,260.0,0.00014247,2]
[388929643,1759511542992,340.0,0.00014795,2]
[388929644,1759511572307,691.0,0.00028767,120]
[388929656,1759511653956,5000.0,0.00018033,2]
[388929657,1759511676295,5000.0,0.00018033,2]
[388929658,1759511699133,5000.0,0.00018033,2]
[388929659,1759511721468,5000.0,0.00018033,2]
[388929740,1759511744761,5000.0,0.00018033,2]
[388929741,1759511767546,5000.0,0.00018033,2]
[388929742,1759511790600,4240.40672341,0.00018033,2]
[388929800,1759511863863,-500.0,0.00018146,2]
[388929801,1759511863890,-684.09999975,0.00018146,2]
[388929808,1759512001201,300.0,0.000181,2]
[388929809,1759512012633,300.0,0.000181,2]
[388929810,1759512023176,300.0,0.000181,2]
[388929811,1759512034694,300.0,0.000181,2]
[388929812,1759512045763,140.90000025,0.000181,2]
[388929813,1759512045789,159.09999975,0.000181,2]
[388929814,1759512056298,300.0,0.000181,2]
[388929815,1759512061542,300.0,0.000181,2]
[388929816,1759512067712,300.0,0.000181,2]
[388929817,1759512071489,300.0,0.000181,2]
[388929818,1759512078760,300.0,0.000181,2]
[388929819,1759512082991,300.0,0.000181,2]
[388929820,1759512090027,300.0,0.000181,2]
[388929821,1759512095273,265.90000025,0.000181,2]
[388929822,1759512095299,34.09999975,0.000181,2]
[388929823,1759512101117,300.0,0.000181,2]
[388929824,1759512109180,300.0,0.000181,2]
[388929825,1759512112453,300.0,0.000181,2]
[388929826,1759512119929,300.0,0.000181,2]
[388929827,1759512120578,300.0,0.000181,2]
[388929828,1759512122567,300.0,0.000181,2]
[388929829,1759512131253,300.0,0.000181,2]
[388929830,1759512131403,300.0,0.000181,2]
[388929831,1759512133842,90.90000025,0.000181,2]
[388929833,1759512173812,339.43481762,0.00018033,2]
[388929834,1759512181687,1915.06742182,0.00018033,2]
[388929836,1759512247478,472.27026472,0.00018033,2]
[388929898,1759512482378,1957.5035019,0.00018,2]
[388929983,1759512514228,260.05789957,0.0002,30]
[388929991,1759512541977,590.673441,0.00016438,2]
[388930051,1759512632616,-209.09999975,0.000181,2]
[388930052,1759512632625,-50.03739086,0.000181,2]
[388930079,1759512638487,-249.96260914,0.000181,2]
[388930080,1759512638497,-300.0,0.000181,2]
[388930081,1759512638507,-83.31668523,0.000181,2]
[388930105,1759512640646,-216.68331477,0.000181,2]
[388930106,1759512640656,-500.0,0.000181,2]
[388930107,1759512640665,-525.0,0.000186,2]
[388930108,1759512640675,-179.05035782,0.00019046,2]
[388930109,1759512640684,-379.26632741,0.000191,2]
[388930110,1759512640696,-445.73367259,0.000191,2]
[388930111,1759512640706,-3598.1113681,0.0002,2]
[388930112,1759512640715,-300.0,0.00020399,2]
[388930113,1759512640725,-300.0,0.00020399,2]
[388930114,1759512640735,-300.0,0.00020399,2]
[388930115,1759512640744,-300.0,0.00020399,2]
[388930116,1759512640754,-300.0,0.00020399,2]
[388930117,1759512640763,-300.0,0.00020399,2]
[388930118,1759512640773,-300.0,0.00020399,2]
[388930119,1759512640783,-300.0,0.00020399,2]
[388930120,1759512640792,-300.0,0.00020399,2]
[388930121,1759512640802,-300.0,0.00020399,2]
[388930122,1759512640811,-300.0,0.00020399,2]
[388930123,1759512640823,-300.0,0.00020399,2]
[388930124,1759512640833,-300.0,0.00020399,2]
[388930125,1759512640842,-300.0,0.00020399,2]
[388930126,1759512640851,-300.0,0.00020399,2]
[388930127,1759512640861,-160.0,0.00021936,2]
[388930128,1759512640871,-234.04758945,0.00021936,2]
[388930129,1759512640880,-590.673441,0.00022783,2]
[388930130,1759512640890,-609.95812354,0.00022901,2]
[388930131,1759512640899,-1041.66666667,0.00023,2]
[388930132,1759512640909,-600.0,0.00023459,20]
[388930133,1759512640918,-6287.03359686,0.00023459,2]